fUSD/lending_fUSD_20240116
["ID","MTS","AMOUNT","RATE_DAILY","PERIOD"]
[311767818,1705383051490,-500.0,0.00022426,2]
[311767819,1705383051500,-500.0,0.00022426,2]
[311767820,1705383051510,-568.4,0.00022426,2]
[311767821,1705383051523,-735.18,0.00022426,2]
[311767822,1705383051534,-500.0,0.00022426,2]
[311767823,1705383051544,-500.0,0.00022426,2]
[311767824,1705383051553,-500.0,0.00022426,2]
[311767825,1705383051564,-500.0,0.00022426,2]
[311767826,1705383051574,-500.0,0.00022426,2]
[311767827,1705383051584,-578.99,0.00022426,2]
[311767828,1705383051595,-500.0,0.00022426,2]
[311767829,1705383051604,-500.0,0.00022426,2]
[311767830,1705383051614,-500.0,0.00022426,2]
[311767831,1705383051624,-500.0,0.00022426,2]
[311767832,1705383051634,-500.0,0.00022426,2]
[311767833,1705383051644,-1033.69,0.00022426,2]
[311767834,1705383051654,-500.0,0.00022426,2]
[311767835,1705383051664,-520.3,0.00022426,2]
[311767836,1705383051675,-500.0,0.00022426,2]
[311767837,1705383051685,-603.58,0.00022426,2]
[311767838,1705383051695,-500.0,0.00022426,2]
[311767839,1705383051705,-500.0,0.00022426,2]
[311767840,1705383051714,-500.0,0.00022426,2]
[311767841,1705383051724,-500.0,0.00022426,2]
[311767842,1705383051733,-500.0,0.00022426,2]
[311767843,1705383051742,-500.0,0.00022426,2]
[311767844,1705383051752,-556.15,0.00022426,2]
[311767845,1705383051762,-500.0,0.00022426,2]
[311767846,1705383051773,-500.0,0.00022426,2]
[311767847,1705383051782,-500.0,0.00022426,2]
[311767848,1705383051793,-500.0,0.00022426,2]
[311767849,1705383051803,-500.0,0.00022426,2]
[311767850,1705383051813,-500.0,0.00022426,2]
[311767851,1705383051823,-585.79,0.00022426,2]
[311767852,1705383051833,-500.0,0.00022426,2]
[311767853,1705383051842,-500.0,0.00022426,2]
[311767854,1705383051852,-500.0,0.00022426,2]
[311767855,1705383051863,-500.0,0.00022426,2]
[311767856,1705383051873,-500.0,0.00022426,2]
[311767857,1705383051883,-500.0,0.00022426,2]
[311767858,1705383051893,-535.78768443,0.00022426,2]
[311767859,1705383051902,-500.0,0.00022426,2]
[311767860,1705383051912,-433.07223952,0.00022426,2]
[311767861,1705383051921,-525.88,0.00022426,2]
[311767862,1705383051930,-500.0,0.00022426,2]
[311767863,1705383051941,-500.0,0.00022426,2]
[311767864,1705383051951,-500.0,0.00022426,2]
[311767865,1705383051964,-500.0,0.00022426,2]
[311767866,1705383051973,-500.0,0.00022426,2]
[311767867,1705383051982,-500.0,0.00022426,2]
[311767868,1705383051992,-500.0,0.00022426,2]
[311767869,1705383052001,-748.43,0.00022426,2]
[311767870,1705383052011,-500.0,0.00022426,2]
[311767871,1705383052020,-500.0,0.00022426,2]
[311767872,1705383052030,-500.0,0.00022426,2]
[311767873,1705383052040,-624.77621778,0.00022426,2]
[311767874,1705383052049,-500.0,0.00022426,2]
[311767875,1705383052059,-500.0,0.00022426,2]
[311767876,1705383052069,-500.0,0.00022426,2]
[311767877,1705383052079,-585.01,0.00022426,2]
[311767878,1705383052088,-500.0,0.00022426,2]
[311767879,1705383052098,-500.0,0.00022426,2]
[311767880,1705383052108,-500.0,0.00022426,2]
[311767881,1705383052119,-500.0,0.00022426,2]
[311767882,1705383052128,-511.47,0.00022426,2]
[311767883,1705383052138,-500.0,0.00022426,2]
[311767884,1705383052147,-500.0,0.00022426,2]
[311767885,1705383052157,-500.0,0.00022426,2]
[311767886,1705383052167,-627.46,0.00022426,2]
[311767887,1705383052176,-500.0,0.00022426,2]
[311767888,1705383052186,-500.0,0.00022426,2]
[311767889,1705383052196,-500.0,0.00022426,2]
[311767890,1705383052206,-500.0,0.00022426,2]
[311767891,1705383052216,-500.0,0.00022426,2]
[311767892,1705383052226,-500.0,0.00022426,2]
[311767893,1705383052235,-500.0,0.00022426,2]
[311767894,1705383052245,-500.0,0.00022426,2]
[311767895,1705383052255,-500.0,0.00022426,2]
[311767896,1705383052265,-500.0,0.00022426,2]
[311767897,1705383052274,-500.0,0.00022426,2]
[311767898,1705383052284,-500.0,0.00022426,2]
[311767899,1705383052293,-500.0,0.00022426,2]
[311767900,1705383052303,-471.55369191,0.00022426,2]
[311767901,1705383052313,-616.47,0.00022426,2]
[311767902,1705383052323,-500.0,0.00022426,2]
[311767903,1705383052332,-500.0,0.00022426,2]
[311767904,1705383052342,-500.0,0.00022426,2]
[311767905,1705383052352,-500.0,0.00022426,2]
[311767906,1705383052363,-592.79,0.00022426,2]
[311767907,1705383052372,-500.0,0.00022426,2]
[311767908,1705383052382,-565.62,0.00022426,2]
[311767909,1705383052391,-500.0,0.00022426,2]
[311767910,1705383052401,-500.0,0.00022426,2]
[311767911,1705383052410,-500.0,0.00022426,2]
[311767912,1705383052420,-500.0,0.00022426,2]
[311767913,1705383052429,-500.0,0.00022426,2]
[311767914,1705383052439,-570.37018005,0.00022426,2]
[311767915,1705383052448,-500.0,0.00022426,2]
[311767916,1705383052458,-500.0,0.00022426,2]
[311767917,1705383052468,-713.61,0.00022426,2]
[311767918,1705383052477,-567.73,0.00022426,2]
[311767919,1705383052487,-500.0,0.00022426,2]
[311767920,1705383052496,-500.0,0.00022426,2]
[311767921,1705383052506,-500.0,0.00022426,2]
[311767922,1705383052515,-526.34,0.00022426,2]
[311767923,1705383052525,-500.0,0.00022426,2]
[311767924,1705383052534,-500.0,0.00022426,2]
[311767925,1705383052544,-500.0,0.00022426,2]
[311767926,1705383052553,-500.0,0.00022426,2]
[311767927,1705383052563,-500.0,0.00022426,2]
[311767928,1705383052573,-500.0,0.00022426,2]
[311767929,1705383052582,-1491.39,0.00022426,2]
[311767930,1705383052592,-500.0,0.00022426,2]
[311767931,1705383052603,-500.0,0.00022426,2]
[311767932,1705383052612,-500.0,0.00022426,2]
[311767933,1705383052622,-500.0,0.00022426,2]
[311767934,1705383052632,-500.0,0.00022426,2]
[311767935,1705383052641,-542.5,0.00022426,2]
[311767936,1705383052651,-500.0,0.00022426,2]
[311767937,1705383052661,-500.0,0.00022426,2]
[311767938,1705383052670,-500.0,0.00022426,2]
[311767939,1705383052680,-500.0,0.00022426,2]
[311767940,1705383052690,-500.0,0.00022426,2]
[311767941,1705383052700,-613.44,0.00022426,2]
[311767942,1705383052709,-500.0,0.00022426,2]
[311767943,1705383052719,-500.0,0.00022426,2]
[311767944,1705383052729,-500.0,0.00022426,2]
[311767945,1705383052739,-1093.25,0.00022426,2]
[311767946,1705383052748,-500.0,0.00022426,2]
[311767947,1705383052758,-500.0,0.00022426,2]
[311767948,1705383052864,-550.53,0.00022426,2]
[311767949,1705383052875,-1039.17,0.00022426,2]
[311767950,1705383052885,-500.0,0.00022426,2]
[311767951,1705383052894,-543.33,0.00022426,2]
[311767952,1705383052903,-500.0,0.00022426,2]
[311767953,1705383052913,-500.0,0.00022426,2]
[311767954,1705383052922,-563.78,0.00022426,2]
[311767955,1705383052931,-500.0,0.00022426,2]
[311767956,1705383052940,-818.58,0.00022426,2]
[311767957,1705383052949,-500.0,0.00022426,2]
[311767958,1705383052959,-660.81,0.00022426,2]
[311767959,1705383052972,-500.0,0.00022426,2]
[311767960,1705383052981,-522.69,0.00022426,2]
[311767961,1705383052991,-931.12,0.00022426,2]
[311767962,1705383053001,-1030.4,0.00022426,2]
[311767963,1705383053010,-500.0,0.00022426,2]
[311767964,1705383053057,-500.0,0.00022426,2]
[311767965,1705383053066,-500.0,0.00022426,2]
[311767966,1705383053076,-2657.31,0.00022426,2]
[311767967,1705383053085,-500.0,0.00022426,2]
[311767968,1705383053095,-667.19,0.00022426,2]
[311767969,1705383053105,-500.0,0.00022426,2]
[311767970,1705383053114,-500.0,0.00022426,2]
[311767971,1705383053123,-500.0,0.00022426,2]
[311767972,1705383053132,-500.0,0.00022426,2]
[311767973,1705383053142,-500.0,0.00022426,2]
[311767974,1705383053151,-500.0,0.00022426,2]
[311767975,1705383053160,-1136.39,0.00022426,2]
[311767976,1705383053169,-500.0,0.00022426,2]
[311767977,1705383053179,-500.0,0.00022426,2]
[311767978,1705383053189,-2576.59,0.00022426,2]
[311767979,1705383053198,-500.0,0.00022426,2]
[311767980,1705383053208,-500.0,0.00022426,2]
[311767981,1705383053217,-702.45,0.00022426,2]
[311767982,1705383053227,-500.0,0.00022426,2]
[311767983,1705383053236,-500.0,0.00022426,2]
[311767984,1705383053246,-500.0,0.00022426,2]
[311767985,1705383053256,-500.0,0.00022426,2]
[311767986,1705383053266,-608.74,0.00022426,2]
[311767987,1705383053275,-500.0,0.00022426,2]
[311767988,1705383053284,-500.0,0.00022426,2]
[311767989,1705383053294,-500.0,0.00022426,2]
[311767990,1705383053303,-500.0,0.00022426,2]
[311767991,1705383053313,-500.0,0.00022426,2]
[311767992,1705383053322,-887.54,0.00022426,2]
[311767993,1705383053331,-500.0,0.00022426,2]
[311767994,1705383053340,-500.0,0.00022426,2]
[311767995,1705383053350,-500.0,0.00022426,2]
[311767996,1705383053360,-500.0,0.00022426,2]
[311767997,1705383053370,-697.8,0.00022426,2]
[311767998,1705383053379,-823.14,0.00022426,2]
[311767999,1705383053389,-527.36,0.00022426,2]
[311768000,1705383053399,-500.0,0.00022426,2]
[311768001,1705383053408,-500.0,0.00022426,2]
[311768002,1705383053417,-500.0,0.00022426,2]
[311768003,1705383053427,-775.15,0.00022426,2]
[311768004,1705383053436,-583.87,0.00022426,2]
[311768005,1705383053446,-500.0,0.00022426,2]
[311768006,1705383053455,-1128.52,0.00022426,2]
[311768007,1705383053465,-526.72,0.00022426,2]
[311768008,1705383053474,-500.0,0.00022426,2]
[311768009,1705383053484,-500.0,0.00022426,2]
[311768010,1705383053494,-500.0,0.00022426,2]
[311768011,1705383053503,-500.0,0.00022426,2]
[311768012,1705383053513,-500.0,0.00022426,2]
[311768013,1705383053522,-578.52,0.00022426,2]
[311768014,1705383053532,-544.46,0.00022426,2]
[311768015,1705383053542,-607.88,0.00022426,2]
[311768016,1705383053551,-500.0,0.00022426,2]
[311768017,1705383053560,-500.0,0.00022426,2]
[311768018,1705383053570,-500.0,0.00022426,2]
[311768019,1705383053579,-905.42,0.00022426,2]
[311768020,1705383053589,-534.63,0.00022426,2]
[311768021,1705383053599,-500.0,0.00022426,2]
[311768022,1705383053609,-500.0,0.00022426,2]
[311768023,1705383053618,-500.0,0.00022426,2]
[311768024,1705383053628,-1014.19,0.00022426,2]
[311768025,1705383053637,-479.98222053,0.00022426,2]
[311768026,1705383053646,-500.0,0.00022426,2]
[311768027,1705383053657,-505.5,0.00022426,2]
[311768028,1705383053666,-805.85,0.00022426,2]
[311768029,1705383053676,-500.0,0.00022426,2]
[311768030,1705383053685,-741.53,0.00022426,2]
[311768031,1705383053695,-818.01,0.00022426,2]
[311768032,1705383053705,-500.0,0.00022426,2]
[311768033,1705383053715,-817.1,0.00022426,2]
[311768034,1705383053725,-500.0,0.00022426,2]
[311768035,1705383053735,-453.30569027,0.00022426,2]
[311768036,1705383053745,-500.0,0.00022426,2]
[311768037,1705383053754,-504.2,0.00022426,2]
[311768038,1705383053764,-500.0,0.00022426,2]
[311768039,1705383053774,-500.0,0.00022426,2]
[311768040,1705383053784,-500.0,0.00022426,2]
[311768041,1705383053793,-726.75,0.00022426,2]
[311768042,1705383053803,-500.0,0.00022426,2]
[311768043,1705383053812,-500.0,0.00022426,2]
[311768044,1705383053822,-500.0,0.00022426,2]
[311768045,1705383053831,-500.0,0.00022426,2]
[311768046,1705383053841,-650.55,0.00022426,2]
[311768047,1705383053851,-508.51,0.00022426,2]
[311768048,1705383053860,-500.0,0.00022426,2]
[311768049,1705383053870,-500.0,0.00022426,2]
[311768050,1705383053880,-596.65,0.00022426,2]
[311768051,1705383053889,-500.0,0.00022426,2]
[311768052,1705383053898,-569.47,0.00022426,2]
[311768053,1705383053908,-500.0,0.00022426,2]
[311768054,1705383053917,-500.0,0.00022426,2]
[311768055,1705383053926,-500.0,0.00022426,2]
[311768056,1705383053936,-500.0,0.00022426,2]
[311768057,1705383053945,-500.0,0.00022426,2]
[311768058,1705383053955,-500.0,0.00022426,2]
[311768059,1705383053967,-500.0,0.00022426,2]
[311768060,1705383053977,-500.0,0.00022426,2]
[311768061,1705383053986,-500.0,0.00022426,2]
[311768062,1705383053996,-500.0,0.00022426,2]
[311768063,1705383054005,-715.15,0.00022426,2]
[311768064,1705383054015,-500.0,0.00022426,2]
[311768065,1705383054024,-958.15,0.00022426,2]
[311768066,1705383054034,-545.12,0.00022426,2]
[311768067,1705383054043,-500.0,0.00022426,2]
[311768068,1705383054052,-500.0,0.00022426,2]
[311768069,1705383054062,-500.0,0.00022426,2]
[311768070,1705383054071,-536.34748326,0.00022426,2]
[311768071,1705383054081,-500.0,0.00022426,2]
[311768072,1705383054090,-500.0,0.00022426,2]
[311768073,1705383054100,-500.0,0.00022426,2]
[311768074,1705383054109,-500.0,0.00022426,2]
[311768075,1705383054119,-500.0,0.00022426,2]
[311768076,1705383054128,-500.0,0.00022426,2]
[311768077,1705383054137,-500.0,0.00022426,2]
[311768078,1705383054147,-500.0,0.00022426,2]
[311768079,1705383054156,-500.0,0.00022426,2]
[311768080,1705383054165,-613.94,0.00022426,2]
[311768081,1705383054174,-500.0,0.00022426,2]
[311768082,1705383054184,-500.0,0.00022426,2]
[311768083,1705383054193,-1334.07,0.00022426,2]
[311768084,1705383054202,-500.0,0.00022426,2]
[311768085,1705383054211,-500.0,0.00022426,2]
[311768086,1705383054221,-500.0,0.00022426,2]
[311768087,1705383054230,-524.86,0.00022426,2]
[311768088,1705383054240,-500.0,0.00022426,2]
[311768089,1705383054249,-660.03,0.00022426,2]
[311768090,1705383054258,-500.0,0.00022426,2]
[311768091,1705383054268,-573.95,0.00022426,2]
[311768092,1705383054277,-500.0,0.00022426,2]
[311768093,1705383054287,-500.0,0.00022426,2]
[311768094,1705383054296,-4902.68,0.00022426,2]
[311768095,1705383054306,-500.0,0.00022426,2]
[311768096,1705383054315,-500.0,0.00022426,2]
[311768097,1705383054324,-647.34,0.00022426,2]
[311768098,1705383054334,-500.0,0.00022426,2]
[311768099,1705383054344,-500.0,0.00022426,2]
[311768100,1705383054354,-1864.26,0.00022426,2]
[311768101,1705383054363,-543.5,0.00022426,2]
[311768102,1705383054373,-500.0,0.00022426,2]
[311768103,1705383054383,-500.0,0.00022426,2]
[311768104,1705383054392,-500.0,0.00022426,2]
[311768105,1705383054402,-500.0,0.00022426,2]
[311768106,1705383054411,-500.0,0.00022426,2]
[311768107,1705383054420,-1755.6,0.00022426,2]
[311768108,1705383054429,-500.0,0.00022426,2]
[311768109,1705383054438,-500.0,0.00022426,2]
[311768110,1705383054447,-1101.09,0.00022426,2]
[311768111,1705383054456,-250.0,0.00022426,2]
[311768112,1705383054465,-587.03,0.00022426,2]
[311768113,1705383054474,-1331.83,0.00022426,2]
[311768114,1705383054483,-500.0,0.00022426,2]
[311768115,1705383054493,-567.75,0.00022426,2]
[311768116,1705383054502,-521.95,0.00022426,2]
[311768117,1705383054511,-871.39,0.00022426,2]
[311768118,1705383054520,-500.0,0.00022426,2]
[311768119,1705383054530,-500.0,0.00022426,2]
[311768120,1705383054540,-500.0,0.00022426,2]
[311768121,1705383054549,-534.06,0.00022426,2]
[311768122,1705383054559,-877.9,0.00022426,2]
[311768123,1705383054568,-524.15,0.00022426,2]
[311768124,1705383054578,-2270.83,0.00022426,2]
[311768125,1705383054587,-1205.03,0.00022426,2]
[311768126,1705383054597,-514.87,0.00022426,2]
[311768127,1705383054607,-500.0,0.00022426,2]
[311768128,1705383054616,-2143.1,0.00022426,2]
[311768129,1705383054625,-735.97,0.00022426,2]
[311768130,1705383054635,-500.0,0.00022426,2]
[311768131,1705383054644,-500.0,0.00022426,2]
[311768132,1705383054653,-500.0,0.00022426,5]
[311768133,1705383054663,-573.0,0.00022426,2]
[311768134,1705383054672,-2857.32,0.00022426,2]
[311768135,1705383054682,-500.0,0.00022426,2]
[311768136,1705383054691,-500.0,0.00022426,2]
[311768137,1705383054701,-500.0,0.00022426,2]
[311768138,1705383054711,-3032.39,0.00022426,2]
[311768139,1705383054720,-794.67,0.00022426,2]
[311768140,1705383054730,-500.0,0.00022426,2]
[311768141,1705383054739,-536.48,0.00022426,2]
[311768142,1705383054748,-500.0,0.00022426,2]
[311768143,1705383054758,-500.0,0.00022426,2]
[311768144,1705383054768,-1723.7,0.00022426,2]
[311768145,1705383054778,-500.0,0.00022426,2]
[311768146,1705383054787,-591.19,0.00022426,2]
[311768147,1705383054796,-1146.74,0.00022426,2]
[311768148,1705383054806,-500.0,0.00022426,2]
[311768149,1705383054816,-1266.47,0.00022426,2]
[311768150,1705383054825,-658.57,0.00022426,2]
[311768151,1705383054834,-500.0,0.00022426,2]
[311768152,1705383054844,-3148.68,0.00022426,2]
[311768153,1705383054854,-500.0,0.00022426,2]
[311768154,1705383054864,-490.58914663,0.00022426,2]
[311768155,1705383054874,-3742.7,0.00022426,2]
[311768156,1705383054883,-551.56,0.00022426,2]
[311768157,1705383054892,-755.73,0.00022426,2]
[311768158,1705383054901,-500.0,0.00022426,2]
[311768159,1705383054910,-1486.81,0.00022426,2]
[311768160,1705383054920,-500.0,0.00022426,2]
[311768161,1705383054929,-500.0,0.00022426,2]
[311768162,1705383054938,-861.52,0.00022426,2]
[311768163,1705383054947,-780.35,0.00022426,2]
[311768164,1705383054957,-580.73,0.00022426,2]
[311768165,1705383054969,-640.15,0.00022426,2]
[311768166,1705383054978,-500.0,0.00022426,2]
[311768167,1705383054987,-500.0,0.00022426,2]
[311768168,1705383054997,-2269.54,0.00022426,2]
[311768169,1705383055006,-500.0,0.00022426,2]
[311768170,1705383055016,-22446.88736768,0.00022464,2]
[311768171,1705383055026,-7924.7,0.00022466,2]
[311768172,1705383055035,-175.95557798,0.00022469,6]
[311768173,1705383055045,-12294.16339703,0.000225,2]
[311768174,1705383055054,-37367.0,0.000225,2]
[311768175,1705383055063,-408.4,0.000225,2]
[311768176,1705383055073,-150.0,0.000225,2]
[311768177,1705383055083,-150.0,0.000225,2]
[311768178,1705383055092,-418.24,0.000225,2]
[311768179,1705383055102,-336.99,0.000225,2]
[311768180,1705383055111,-150.0,0.000225,2]
[311768181,1705383055121,-294.22,0.000225,2]
[311768182,1705383055130,-329.17,0.000225,2]
[311768183,1705383055139,-940.88,0.000225,2]
[311768184,1705383055148,-150.0,0.000225,2]
[311768185,1705383055158,-300.0,0.000225,2]
[311768186,1705383055167,-314.46,0.000225,2]
[311768187,1705383055176,-401.54,0.000225,2]
[311768188,1705383055185,-3479.0,0.000225,2]
[311768189,1705383055195,-22446.88736768,0.00022518,2]
[311768190,1705383055205,-150.0,0.00022519,2]
[311768191,1705383055215,-150.0,0.00022519,2]
[311768192,1705383055225,-2155.43,0.00022537,2]
[311768193,1705383055234,-153.95,0.00022553,2]
[311768194,1705383055243,-150.0,0.00022566,2]
[311768195,1705383055253,-150.0,0.000226,2]
[311768196,1705383055262,-151.88,0.000226,2]
[311768197,1705383055271,-235.10622754,0.000226,2]
[311768198,1705383055280,-331.50283469,0.000226,2]
[311768199,1705383055290,-1462.16272739,0.000226,2]
[311768200,1705383055299,-175.95557798,0.00022613,6]
[311768201,1705383055309,-152.92,0.00022624,2]
[311768202,1705383055318,-162.81,0.00022629,2]
[311768203,1705383055327,-637.18,0.00022636,2]
[311768204,1705383055337,-1627.95,0.00022698,2]
[311768205,1705383055346,-2529.5,0.00022698,2]
[311768206,1705383055356,-500.0,0.00022698,2]
[311768207,1705383055364,-500.0,0.00022698,2]
[311768208,1705383055373,-1309.8,0.00022698,2]
[311768209,1705383055383,-500.0,0.00022698,2]
[311768210,1705383055392,-872.63,0.00022698,2]
[311768211,1705383055402,-836.47,0.00022698,2]
[311768212,1705383055411,-938.61,0.00022698,2]
[311768213,1705383055421,-525.25,0.00022698,2]
[311768214,1705383055430,-2222.71,0.00022698,2]
[311768215,1705383055439,-10509.43,0.00022698,2]
[311768216,1705383055448,-1048.87,0.00022698,2]
[311768217,1705383055457,-848.1,0.00022698,2]
[311768218,1705383055466,-1061.7,0.00022698,2]
[311768219,1705383055475,-500.0,0.00022698,2]
[311768220,1705383055485,-1287.26,0.00022698,2]
[311768221,1705383055494,-964.13,0.00022698,2]
[311768222,1705383055511,-1652.3,0.00022698,2]
[311768223,1705383055523,-1188.67,0.00022698,2]
[311768224,1705383055533,-775.2,0.00022698,2]
[311768225,1705383055542,-2387.88,0.00022698,2]
[311768226,1705383055551,-756.11,0.00022698,2]
[311768227,1705383055561,-679.67,0.00022698,2]
[311768228,1705383055571,-500.0,0.00022698,2]
[311768229,1705383055580,-1264.48,0.00022698,2]
[311768230,1705383055590,-500.0,0.00022698,2]
[311768231,1705383055600,-500.0,0.00022698,2]
[311768232,1705383055610,-574.2,0.00022698,2]
[311768233,1705383055619,-500.0,0.00022698,2]
[311768234,1705383055629,-500.0,0.00022698,2]
[311768235,1705383055639,-500.0,0.00022698,2]
[311768236,1705383055649,-1500.73,0.00022698,2]
[311768237,1705383055659,-500.0,0.00022698,2]
[311768238,1705383055668,-500.0,0.00022698,2]
[311768239,1705383055678,-562.1,0.00022698,2]
[311768240,1705383055688,-500.0,0.00022698,2]
[311768241,1705383055698,-500.0,0.00022698,2]
[311768242,1705383055708,-500.0,0.00022698,2]
[311768243,1705383055718,-3493.13,0.00022698,2]
[311768244,1705383055728,-500.0,0.00022698,2]
[311768245,1705383055737,-151.0,0.00022699,7]
[311768246,1705383055747,-151.0,0.00022699,7]
[311768247,1705383055757,-151.0,0.00022699,7]
[311768248,1705383055766,-175.484443,0.00022699,7]
[311768249,1705383055776,-157.441636,0.00022699,7]
[311768250,1705383055786,-151.0,0.00022699,7]
[311768251,1705383055796,-151.0,0.00022699,7]
[311768252,1705383055805,-151.0,0.00022699,7]
[311768253,1705383055815,-500.0,0.00022699,2]
[311768254,1705383055824,-500.0,0.00022699,2]
[311768255,1705383055834,-525.55,0.00022699,2]
[311768256,1705383055844,-800.42,0.00022699,2]
[311768257,1705383055853,-538.26,0.00022699,2]
[311768258,1705383055863,-500.0,0.00022699,2]
[311768259,1705383055872,-500.0,0.00022699,2]
[311768260,1705383055882,-621.5,0.00022699,2]
[311768261,1705383055891,-899.12,0.00022699,2]
[311768262,1705383055901,-500.0,0.00022699,2]
[311768263,1705383055911,-500.0,0.00022699,2]
[311768264,1705383055920,-524.18,0.00022699,2]
[311768265,1705383055929,-759.96,0.00022699,2]
[311768266,1705383055942,-626.89,0.00022699,2]
[311768267,1705383055953,-578.09,0.00022699,2]
[311768268,1705383055965,-889.88,0.00022699,2]
[311768269,1705383055974,-500.0,0.00022699,2]
[311768270,1705383055983,-533.73,0.00022699,2]
[311768271,1705383055992,-501.67,0.00022699,2]
[311768272,1705383056002,-500.0,0.00022699,2]
[311768273,1705383056011,-681.02,0.00022699,2]
[311768274,1705383056021,-1225.16,0.00022699,2]
[311768275,1705383056030,-500.0,0.00022699,2]
[311768276,1705383056039,-500.0,0.00022699,2]
[311768277,1705383056051,-500.0,0.00022699,2]
[311768278,1705383056066,-500.0,0.00022699,2]
[311768279,1705383056077,-700.6,0.00022699,2]
[311768280,1705383056086,-667.96,0.00022699,2]
[311768281,1705383056095,-768.52,0.00022699,2]
[311768282,1705383056105,-797.78,0.00022699,2]
[311768283,1705383056114,-500.0,0.00022699,2]
[311768284,1705383056124,-582.49,0.00022699,2]
[311768285,1705383056133,-693.9,0.00022699,2]
[311768286,1705383056147,-583.52,0.00022699,2]
[311768287,1705383056156,-1102.15,0.00022699,2]
[311768288,1705383056166,-500.0,0.00022699,2]
[311768289,1705383056175,-500.0,0.00022699,2]
[311768290,1705383056185,-533.28,0.00022699,2]
[311768291,1705383056194,-1290.48,0.00022699,2]
[311768292,1705383056204,-500.0,0.00022699,2]
[311768293,1705383056213,-500.0,0.00022699,2]
[311768294,1705383056223,-607.47,0.00022699,2]
[311768295,1705383056232,-505.49,0.00022699,2]
[311768296,1705383056242,-500.0,0.00022699,2]
[311768297,1705383056251,-500.0,0.00022699,2]
[311768298,1705383056260,-603.94,0.00022699,2]
[311768299,1705383056270,-624.26,0.00022699,2]
[311768300,1705383056279,-500.0,0.00022699,2]
[311768301,1705383056289,-500.0,0.00022699,2]
[311768302,1705383056298,-680.56,0.00022699,2]
[311768303,1705383056307,-500.0,0.00022699,2]
[311768304,1705383056317,-556.91,0.00022699,2]
[311768305,1705383056326,-2434.22,0.00022699,2]
[311768306,1705383056335,-500.1,0.00022699,2]
[311768307,1705383056345,-717.85,0.00022699,2]
[311768308,1705383056355,-1073.93,0.00022699,2]
[311768309,1705383056364,-500.0,0.00022699,2]
[311768310,1705383056373,-685.71,0.00022699,2]
[311768311,1705383056382,-658.67,0.00022699,2]
[311768312,1705383056391,-500.0,0.00022699,2]
[311768313,1705383056400,-543.44,0.00022699,2]
[311768314,1705383056410,-500.0,0.00022699,2]
[311768315,1705383056419,-722.03,0.00022699,2]
[311768316,1705383056428,-500.0,0.00022699,2]
[311768317,1705383056437,-500.0,0.00022699,2]